Cogmind - Beta 16.1 @@@ ROGUE MODE // 2026.03.27 @ 04:27:16 Player: Vena Result: Destroyed by G-47 Trooper with Particle Gun Performance ------------- Evolutions (2) 1000 Regions Visited (4) 800 Robots Destroyed (23) 115 Value Destroyed (647) 647 Prototype IDs (1) 20 Alien Tech Used (0) 0 Bonus (0) 0 TOTAL SCORE: 2582 Bonus ------- None Cogmind --------- Core Integrity 0/550 Matter 262/300 Energy 98/100 System Corruption 0% Temperature Cool (9) Movement Core (50) Location -8/Storage Parts ------- > --- POWER (2) -------- (None) > --- PROPULSION (3) --- (None) > --- UTILITY (4) ------ Hacking Suite Hacking Suite > --- WEAPON (2) ------- High-powered Shotgun > --- INVENTORY (5) ---- Hardened Medium Armor Plating Drone Bay (2/2) Improved Datajack Improved Datajack Peak State ------------ > --- POWER ------------ Improved Ion Engine Nuclear Core > --- PROPULSION ------- Light Treads VSS Leg Cesium-ion Thruster > --- UTILITY ---------- Hardened Medium Armor Plating Hacking Suite Hacking Suite Drone Bay > --- WEAPON ----------- Shotgun High-powered Shotgun > --- INVENTORY -------- Beam Cannon Grenade Launcher Improved Datajack Improved Datajack [Rating: 31] Favorites ----------- Power Improved Ion Engine Engine Improved Ion Engine Power Core Nuclear Core Propulsion Improved Aluminum Leg Treads Light Treads Leg Improved Aluminum Leg Wheel Wheel Flight Unit Cesium-ion Thruster Utility Small Storage Unit Device Field Recycling Unit Storage Small Storage Unit Processor Salvage Targeting Computer Hackware Hacking Suite Protection Hardened Light Armor Plating Weapon Shotgun Energy Gun EM Pulse Gun Energy Cannon Beam Cannon Ballistic Gun Shotgun Ballistic Cannon Improved Light Cannon Launcher Grenade Launcher Special Melee Weapon Improved Datajack Build | -11 -10 -9 -8 -8 ------- Run | Yrd Mat Mat Mat Sto Slots Evolved 4 | . . 2 2 . Power 1 | . . . 1 . Propulsion 1 | . . . 1 . Utility 2 | . . 2 . . Weapon . | . . . . . Parts Attached 50 | 7 2 11 26 4 Power 8 | 1 . 2 5 . Engine 6 | 1 . 2 3 . Core 2 | . . . 2 . Reactor . | . . . . . Propulsion 15 | 4 . 2 7 2 Treads 3 | . . . 2 1 Leg 6 | 2 . . 4 . Wheel 4 | 2 . 2 . . Hover . | . . . . . Flight 2 | . . . 1 1 Utility 14 | . 2 3 7 2 Device 7 | . 1 1 3 2 Storage 1 | . 1 . . . Processor 1 | . . 1 . . Hackware 2 | . . . 2 . Protection 3 | . . 1 2 . Artifact . | . . . . . Weapon 13 | 2 . 4 7 . Energy Gun 2 | 1 . 1 . . Energy Cannon 2 | . . . 2 . Ballistic Gun 4 | 1 . 2 1 . Ballistic Cannon 2 | . . . 2 . Launcher 1 | . . 1 . . Special Weapon . | . . . . . Impact Weapon . | . . . . . Slashing Weapon . | . . . . . Piercing Weapon . | . . . . . Special Melee Weapon 2 | . . . 2 . Unidentified Prototypes 1 | . . 1 . . Parts Lost 23 | . . 2 16 5 Power 5 | . . 1 3 1 Propulsion 6 | . . 1 3 2 Utility 8 | . . . 7 1 Weapon 4 | . . . 3 1 Highest Loss Streak 7 | . . 1 7 4 To Critical Strikes . | . . . . . Average Backups 6 | 3 4 7 7 3 Power . | . 1 . . . Propulsion . | 1 1 . . . Utility . | . . 1 . 1 Weapon 2 | . 2 4 3 . Tool/Special . | . . . . . Unused Backups 5 | . . 3 1 1 Power . | . . . . . Propulsion . | . . . . . Utility 2 | . . 1 . 1 Weapon 3 | . . 2 1 . Tool/Special . | . . . . . Average Slot Usage (%) 76 | . 96 91 67 73 Engine 7 | . 14 10 4 6 Core 1 | . . . 2 4 Treads 2 | . . . 2 4 Leg 5 | . . . 9 4 Wheel 8 | . 28 20 2 . Flight 2 | . . . . 11 Device 9 | . 10 11 11 4 Storage 8 | . 14 11 8 . Processor 2 | . . 10 . . Hackware 6 | . . . 5 18 Protection 4 | . . 6 4 4 Energy Gun 3 | . 14 8 . . Energy Cannon 2 | . . . 4 3 Ballistic Gun 9 | . 14 11 7 12 Ballistic Cannon 2 | . . . 4 . Peak Build Rating 31 | 5 7 15 26 31 Average Rating 14 | 3 6 12 15 21 On Entrance 10 | . 5 7 15 25 Avg Prop Armor Cover (%) 5 | 11 . . 4 4 Naked Turns . | . . . . . Heaviest Build 34 | 6 12 31 34 34 Greatest Support 40 | 26 26 26 40 20 Greatest Overweight (x) 6 | . . 1 6 2 Average Overweight (x) . | . . . 1 . Largest Inventory Capacity 8 | 5 8 8 8 5 Average Capacity 7 | 5 8 8 7 5 Most Carried 8 | 5 6 8 8 5 Average Carried 6 | 3 4 7 7 3 Final Capacity 8 | 5 8 8 5 5 Final Carried 7 | 5 5 7 5 4 Class Distribution -------------------- 74% | Mutant 16% | Scavenger-Mutant 9% | Hacker-Mutant Dominant Class ---------------- Mutant | -10/Materials Mutant | -9/Materials Mutant | -8/Materials Hacker-Mutant | -8/Storage Resources | -11 -10 -9 -8 -8 ----------- Run | Yrd Mat Mat Mat Sto Matter Collected 921 | 228 26 187 366 114 Remotely 5 | . . . 5 . Salvage Created 800 | . 26 311 376 87 Parts 48 | . 4 21 19 4 Haulers Intercepted . | . . . . . Recyclers Shooed 4 | . . . 3 1 Parts Field Recycled 1 | . . 1 . . Retrieved Matter . | . . . . . Parts Self-Destructed . | . . . . . Prevented . | . . . . . Parts Restored . | . . . . . Kills | -11 -10 -9 -8 -8 ------- Run | Yrd Mat Mat Mat Sto Combat Hostiles Destroyed 19 | . . 9 7 3 Guns 11 | . . 7 1 3 Cannons 6 | . . . 6 . AOE 2 | . . 2 . . Classes Destroyed 6 | . 1 3 2 . Builder 2 | . 1 1 . . Recycler 2 | . . . 1 1 Swarmer 7 | . . 4 . 3 Grunt 5 | . . 3 2 . Sentry 5 | . . 2 3 . Specialist 2 | . . . 2 . Best Kill Streak 5 | . 1 5 2 3 Combat Bots Only 5 | . . 5 2 3 Max Kills in Single Turn 2 | . 1 1 1 2 Gunslinging . | . . . . . Exploded 1 | . . 1 . . Melee . | . . . . . Uniques/NPCs Destroyed . | . . . . . Combat | -11 -10 -9 -8 -8 -------- Run | Yrd Mat Mat Mat Sto Hostile Shots Fired 296 | . . 46 193 57 Missed 93 | . . 15 60 18 Hits 203 | . . 31 133 39 Projectile 203 | . . 31 133 39 Critical Strikes 15 | . . 3 10 2 Damage Taken 3045 | . . 372 2153 520 Core 623 | . . 66 399 158 Absorbed by Shields . | . . . . . Core Remaining (%) 94 | 100 100 83 . . Volleys Fired 82 | . 3 26 40 13 Largest 2 | . 2 2 2 2 Hottest 128 | . 60 68 128 48 Shots Fired 140 | . 6 44 64 26 Gun 85 | . 6 42 11 26 Cannon 53 | . . . 53 . Launcher 2 | . . 2 . . Special . | . . . . . Kinetic 95 | . 3 28 38 26 Thermal 26 | . . . 26 . Explosive 2 | . . 2 . . Electromagnetic 17 | . 3 14 . . Robot Hit Streak 8 | . 3 6 8 4 Robot Miss Streak 6 | . 3 4 4 6 Penetration Max . | . . . . . Secondary Targets 1 | . . 1 . . Max Gunslinging Chain 1 | . . 1 . . Shots Hit Robots 84 | . 3 23 42 16 Core Hits 40 | . 1 17 15 7 Critical Kills . | . . . . . Critical Parts Destroyed . | . . . . . Critical Strikes 2 | . . . 2 . Blast 2 | . . . 2 . Melee Attacks 2 | . . . 2 . Impact . | . . . . . Slashing . | . . . . . Piercing . | . . . . . Sneak Attacks . | . . . . . Combat Hostiles . | . . . . . Follow-up Attacks . | . . . . . Damage Inflicted 1489 | . 31 362 753 343 Guns 745 | . 31 268 104 342 Cannons 638 | . . . 638 . Explosions 94 | . . 94 . . Melee . | . . . . . Ramming 12 | . . . 11 1 Kinetic 873 | . 18 153 360 342 Thermal 382 | . . . 382 . Explosive 94 | . . 94 . . Electromagnetic 128 | . 13 115 . . Impact . | . . . . . Slashing . | . . . . . Piercing . | . . . . . Highest Corruption . | . . . . . Average Corruption . | . . . . . Corruption Purged . | . . . . . Corruption Blocked . | . . . . . Overload Shots . | . . . . . Overflow Damage 4 | . . . 4 . Projectiles 4 | . . . 4 . Explosions . | . . . . . Melee . | . . . . . Knockbacks 3 | . . . 3 . Impact . | . . . . . Kinetic 3 | . . . 3 . Secondary . | . . . . . Self-Inflicted Damage 14 | . . 13 1 . Shots 1 | . . 1 . . Rammed 3 | . . . 2 1 Targets Rammed 3 | . . . 2 1 Kicked . | . . . . . Crushed . | . . . . . Highest Temperature 553 | . 20 55 553 54 Average Temperature 103 | . 15 19 158 26 Received Heat Transfer 1059 | . . 114 657 288 Effects 10 | . . . 10 . Shutdowns 1 | . . . 1 . Energy Bleed 1 | . . . 1 . Interference 1 | . . . 1 . Matter Decay 1 | . . . 1 . Short Circuit 1 | . . . 1 . Damage (minor) 3 | . . . 3 . Damage (major) 1 | . . . 1 . Damage (core) 1 | . . . 1 . Siege Activations . | . . . . . Martial Activations . | . . . . . Shielding Activations . | . . . . . Robots Disrupted . | . . . . . Combat Hostiles . | . . . . . Robots Corrupted . | . . . . . Combat Hostiles . | . . . . . Parts Fried . | . . . . . Impact Corruptions . | . . . . . Robots Melted . | . . . . . Combat Hostiles . | . . . . . Parts Melted 1 | . . . 1 . Heat Transferred 740 | . . . 740 . Parts Sabotaged . | . . . . . Parts Stolen . | . . . . . Parts Stripped . | . . . . . Power Chain Reactions . | . . . . . Alert | -11 -10 -9 -8 -8 ------- Run | Yrd Mat Mat Mat Sto Maximum Alert Level . | . . . . . Low Security (%) 100 | 100 100 100 100 100 Level 1 . | . . . . . Level 2 . | . . . . . Level 3 . | . . . . . Level 4 . | . . . . . Level 5 . | . . . . . High Security . | . . . . . Max Security . | . . . . . Peak Influence 152 | . 31 152 59 60 Initial 59 | . . . 59 2 Average 25 | . 6 72 15 16 Influence Increases 754 | . 45 316 273 120 Destroy 0b10 Robot/C 380 | . . 180 140 60 Destroy 0b10 Robot/NC 20 | . 5 5 5 5 Destroy Leader 110 | . . 50 50 10 Successful Hack 48 | . 40 8 . . Disable Machine 30 | . . . 30 . Destroy Structure 16 | . . 13 3 . Lose Combat Pursuer 150 | . . 60 45 45 Influence Decreases 739 | . 45 174 408 112 Entered New Map 88 | . . . 83 5 Time Decay 564 | . 45 154 283 82 Lost Part 87 | . . 20 42 25 Squads Dispatched 6 | . . 2 3 1 Investigation 2 | . . 1 . 1 Extermination . | . . . . . Reinforcement 4 | . . 1 3 . Assault . | . . . . . Garrison . | . . . . . Intercept . | . . . . . Searches Triggered . | . . . . . Construction Impeded . | . . . . . Haulers Reinforced . | . . . . . Active Scanning Responses . | . . . . . Cargo Convoy Interrupts . | . . . . . Stealth | -11 -10 -9 -8 -8 --------- Run | Yrd Mat Mat Mat Sto Distress Signals 3 | . . 1 2 . Communications Jammed . | . . . . . Distress Signals . | . . . . . Times Spotted 43 | . 1 15 15 12 Peak Tracking Total 6 | . 1 6 5 6 Tactical Retreats 7 | . . 3 3 1 Traps | -11 -10 -9 -8 -8 ------- Run | Yrd Mat Mat Mat Sto Traps Triggered 1 | . . . 1 . Indirectly . | . . . . . Trap Hack Attempts . | . . . . . Triggered . | . . . . . Disarmed . | . . . . . Reprogrammed . | . . . . . Reused . | . . . . . Traps Extracted . | . . . . . Installed . | . . . . . Triggered . | . . . . . Machines | -11 -10 -9 -8 -8 ---------- Run | Yrd Mat Mat Mat Sto Machines Disabled 2 | . . . 2 . Max in Single Turn 1 | . . . 1 . Machines Repaired . | . . . . . Machines Dismantled . | . . . . . Machines Sabotaged . | . . . . . Overloaded Fab Kills . | . . . . . Hacking | -11 -10 -9 -8 -8 --------- Run | Yrd Mat Mat Mat Sto Machines Accessed 13 | . 5 4 2 2 Terminals 9 | . 4 2 1 2 Fabricators . | . . . . . Repair Stations . | . . . . . Recycling Units 2 | . 1 . 1 . Scanalyzers 2 | . . 2 . . Garrison Access . | . . . . . Total Hacks 39 | . 15 15 5 4 Successful 24 | . 9 10 4 1 Failed 15 | . 6 5 1 3 Catastrophic 3 | . 1 1 1 . Database Lockouts . | . . . . . Manual . | . . . . . Terminals 21 | . 9 5 3 4 Fabricators . | . . . . . Repair Stations . | . . . . . Recycling Units 8 | . 6 . 2 . Scanalyzers 10 | . . 10 . . Garrison Access . | . . . . . Terminal Hacks 10 | . 5 1 3 1 Open Door 1 | . . . . 1 Emergency Access Points 1 | . . 1 . . Alert Level 3 | . 1 . 2 . Locate Traps 1 | . 1 . . . Maintenance Status 2 | . 1 . 1 . Surveillance Status 1 | . 1 . . . Registered Components 1 | . 1 . . . Fabricator Hacks . | . . . . . Repair Station Hacks . | . . . . . Recycling Unit Hacks 5 | . 4 . 1 . Process 2 | . 2 . . . Report Inventory 2 | . 1 . 1 . Retrieve Matter 1 | . 1 . . . Scanalyzer 9 | . . 9 . . Insert Component 2 | . . 2 . . Analyze 2 | . . 2 . . Retrieve Study 5 | . . 5 . . Garrison Access Hacks . | . . . . . Unauthorized Hacks . | . . . . . Terminals . | . . . . . Fabricators . | . . . . . Repair Stations . | . . . . . Recycling Units . | . . . . . Scanalyzers . | . . . . . Garrison Access . | . . . . . Data Cores Recovered . | . . . . . Used . | . . . . . Hacking Detections 10 | . 5 3 1 1 Full Trace Events 2 | . . 1 . 1 Feedback Events . | . . . . . Feedback Blocked . | . . . . . Robot Schematics Acquired . | . . . . . Robots Built . | . . . . . Authchips . | . . . . . Time . | . . . . . Total Robot Build Rating . | . . . . . Part Schematics Acquired 2 | . . 2 . . Parts Built . | . . . . . Authchips . | . . . . . Time . | . . . . . Total Part Build Rating . | . . . . . Part Studies Acquired 5 | . . 5 . . Parts Repaired . | . . . . . Time . | . . . . . Parts Recycled . | . . . . . Recycled Matter 118 | . 118 . . . Retrieved Matter 118 | . 118 . . . Retrieved Components . | . . . . . Parts Scanalyzed 2 | . . 2 . . Part Schematics Acquired 2 | . . 2 . . Parts Damaged . | . . . . . Bothacking | -11 -10 -9 -8 -8 ------------ Run | Yrd Mat Mat Mat Sto Used RIF Installer . | . . . . . Robots Hacked 1 | . . . 1 . Non-combat . | . . . . . Combat 1 | . . . 1 . Robot Hacks Applied 1 | . . . 1 . parse_system 1 | . . . 1 . Relay Couplers Released . | . . . . . Fabnet Peak Effective % . | . . . . . Robots Rewired . | . . . . . Allies Hacked . | . . . . . Hacks Repelled . | . . . . . Allies | -11 -10 -9 -8 -8 -------- Run | Yrd Mat Mat Mat Sto Total Allies . | . . . . . Largest Group . | . . . . . Highest-Rated Group . | . . . . . Highest-Rated Ally . | . . . . . Total Orders 6 | . . . . 6 EXPLORE 6 | . . . . 6 Ally Attacks . | . . . . . Total Damage . | . . . . . Kills . | . . . . . Allies Corrupted 3 | . . . . 3 Allies Melted . | . . . . . Intel | -11 -10 -9 -8 -8 ------- Run | Yrd Mat Mat Mat Sto Active Infowar (turns) 475 | . 147 328 . . Terrain 475 | . 147 328 . . Robot Analysis Total . | . . . . . Derelict Logs Recovered . | . . . . . Drone Launches 8 | . . . . 8 Drone Recoveries 3 | . . . . 3 Exploration | -11 -10 -9 -8 -8 ------------- Run | Yrd Mat Mat Mat Sto Turns Passed 1873 | 70 192 368 922 321 Spaces Moved 1088 | 55 197 289 310 237 Core 51 | 7 . . 40 4 Treads 103 | . . . 82 21 Legs 189 | 12 . . 177 . Wheels 533 | 36 197 289 11 . Hover . | . . . . . Flight 212 | . . . . 212 Fastest Speed 40 | 50 90 90 100 40 Average Speed 124 | 85 90 93 215 79 Slowest Speed 350 | 120 90 115 350 240 Overloaded Moves . | . . . . . Propulsion Burnouts . | . . . . . Robots Hopped 9 | . . . . 9 Potential Cave-ins . | . . . . . Cave-ins Triggered . | . . . . . Exploration Rate (%) 24 | 3 29 22 25 41 Regions Visited 4 Branch Regions 1 Pre-discovered Areas . | . . . . . Known Exits Taken . | . . . . . Unknown Exits Taken 4 | 1 1 1 1 . Scrap Searched . | . . . . . Spaces Dug . | . . . . . Terrain Destroyed 14 | . . 12 2 . Melee . | . . . . . Projectile 2 | . . . 2 . AOE 12 | . . 12 . . Terrain Rammed . | . . . . . Walls Destroyed . | . . . . . Machines Disabled . | . . . . . Actions | -11 -10 -9 -8 -8 --------- Run | Yrd Mat Mat Mat Sto Total 1462 | 75 207 348 495 337 Wait 175 | . . 4 95 76 Move 1066 | 54 196 288 309 219 Hop 9 | . . . . 9 Pick Up 40 | 10 4 10 11 5 Fast Attach 14 | . . 4 10 . Attach 26 | 5 2 4 11 4 Detach . | . . . . . Swap 18 | 6 . 3 8 1 Drop 25 | . 2 9 7 7 Fire 82 | . 3 26 40 13 Melee 2 | . . . 2 . Ram 2 | . . . 1 1 Kick . | . . . . . Crush 1 | . . . 1 . Escape Stasis . | . . . . . Rewire . | . . . . . Trap . | . . . . . Miscellaneous 2 | . . . . 2 Route ------- -11/Scrapyard -10/Materials -9/Materials -8/Materials -8/Storage History --------- Turn | Location | Event 10 | -11/Scrapyard | Discovered new exit (range 15) 71 | -11/Scrapyard | Entered Materials 260 | -10/Materials | Discovered new exit (range 4) 263 | -10/Materials | Entered another Materials area 263 | -9/Materials | Evolved 2 slots: Utility x2 301 | -9/Materials | Build established: Mutant 562 | -9/Materials | Discovered new exit (range 12) 631 | -9/Materials | Entered another Materials area 631 | -8/Materials | Evolved 2 slots: Power x1, Propulsion x1 1331 | -8/Materials | Core integrity fell below 50% 1367 | -8/Materials | Lost 7 parts (1p1n2u3w) 1491 | -8/Materials | Discovered new exit (range 4) 1553 | -8/Materials | Entered Storage 1672 | -8/Storage | Lost 3 allies 1805 | -8/Storage | Core integrity fell below 20% 1839 | -8/Storage | Lost 4 parts (1p1n1u1w) 1874 | -8/Storage | Destroyed by G-47 Trooper with Particle Gun Last Messages --------------- 01737_ Acquired 53 matter. 01745_ Acquired Hrd. Medium Armor Plating. 01761_ Acquired 9 matter. 01783_ Drone released from Drone Bay. 01786_ Acquired 5 matter. 01792_ Cesium-ion Thruster destroyed. 01794_ Broken Imp. Ion Engine destroyed. 01794_ Shotgun+ destroyed. 01798_ Critical hit (Burn: +37). 01806_ Drone retrieved by Drone Bay (repair cost: 4). 01807_ K-01 Serf cleans the Terminal. 01808_ Drone Bay destroyed. 01808_ >> Lost connection to Drone. 01813_ Acquired 13 matter. 01854_ Connecting with Door Terminal... 01870_ ALERT: Suspicious activity at Terminal S008. Dispatching Investigation squad. 01872_ Critical hit (Burn: +37). 01872_ Flight Unit destroyed. Map ----- +----------------------------------------------------+ | ?????????????# !! ""#????????????????????? | | ?????????????# !! ""#????????????????????? | | ?????????????# #??????????????????????? | | ?????????????# #??????????????????????? | | ??????????"####/########??????????????????????? | | ??????????" #???????????????????????????? | | ??????????" #??????????########????????## | | ??????????"#T### #?????????## #????????"" | | ?????########### # "???????# #???????#"Y | | ?????# + + "????????# ![ #????####" | | ?????# """ # # ??# ![ #????# | | ??????????"""" # #??????????# ![ #????# | | ?????????????" # #??????????# #????# | | ?????????????" # #??????????####/###????#/!! | | ?????????????" # ###???????????# #??????#=! | | ?????????????" + # ???????????# #??????#!! | | ?????? # # "???????????# #??????# | | ?????########### # "???????????# ######## | | ?????# # # "???????????# ## ####+# | | ?????# / + ""??????????# ## | | ?????# # # ""?????????# ^ T | | ????#" # # """" #???# ## | | ????#T # # #???# ## ####+# | | ????#" """"" # ####+##########/######## | | ????## """"" # #### ###### ## | | ?????? """"" # YY@ g/ ## ! | | ???????######### ###### ## | | ???????????????#+#######????# ## | | ??????????????## #???????# ## | | ??????????????#T #???????# ## [ | | ??????????????##"""##???????# ####### | | ????????????????????????????########+####?????? | | ??????????????????????????????????????????????? | | ??????????????????????????????????????????????? | | ??????????????????????????????????????????????? | | ??????????????????????????????????????????????? | | ??????????????????????????????????????????????? | | ??????????????????????????????????????????????? | | ??????????????????????????????????????????????? | | ??????????????????????????????????????????????? | | ??????????????????????????????????????????????? | | ??????????????????????????????????????????????? | | ??????????????????????????????????????????????? | | ??????????????????????????????????????????????? | | ??????????????????????????????????????????????? | | ??????????????????????????????????????????????? | | ??????????????????????????????????????????????? | | ??????????????????????????????????????????????? | | ??????????????????????????????????????????????? | | ??????????????????????????????????????????????? | +----------------------------------------------------+ Best States ------------- Heat Dissipation 45 Energy Generation 21 Energy Capacity 405 Matter Stores 300 Matter Capacity 300 Sight Range 16 Terrain Scan Range 14 Terrain Scan Density 10 Armor Coverage 300 Evasion (%) 62 Recoil Reduction 2 Salvage Targeting 1 Offensive Hacking 20 Item Schematics ----------------- Grenade Launcher | -9/Materials | Scanalyzed Beam Cannon | -9/Materials | Scanalyzed Robot Schematics ------------------ None Fabricated ------------ Nothing Repaired ---------- Nothing Studied --------- Grenade Launcher | -9/Materials | Hacked Shotgun | -9/Materials | Hacked Beam Cannon | -9/Materials | Hacked Hvy. Assault Rifle | -9/Materials | Hacked Particle Cannon | -9/Materials | Hacked Alien Tech Used ----------------- None Achievements -------------- Heavy Suspicion Item+ There's More Where That Came From Challenges ------------ None Game ------ Seed InsulatedBlinkEngine Manual? 0 Play Time 00:45:26 Cumulative 15.3 hours Start 2026.03.27 @ 03:31:40 End 2026.03.27 @ 04:27:16 Sessions 1 Manual Loads 0 Difficulty Rogue Special Mode None Game No. 19 Rogue 19 Adventurer 0 Explorer 0 Win Type - Total 0 Types 0/0/0/0/0/0/0/0/0/0 Lore% 9 Gallery% 12 Achievement% 11 Wizard Run 0 Options --------- Layout 1 ASCII 0 Keyboard 0 Movement Mouse Keybinds 0 Fullscreen 2 Font 24/Smallcaps Map View 50x35 Zoom Use 0% Tactical HUD 1 Map Filters NONE Filters NONE Steam 1 RUN: 679a301d-ea8f-41e3-add9-be082522a8d5